[Event "Titled Tuesday Blitz May 31 Early 2022"]
[White "Kamsky, Gata"]
[Black "Bachmann, Axel"]
[WhiteFideId "2000024"]
[BlackFideId "3700488"]
[WhiteElo "2645"]
[BlackElo "2587"]
[Result "0-1"]
[Round "10"]
[TimeControl "180+1"]
[Date "2022.05.31"]
[WhiteClock "0:00:03"]
[BlackClock "0:00:09"]

1. e4 {[%clk 0:03:00]}  d6 {[%clk 0:02:57]} 2. f4 {[%clk 0:02:54]}  Nf6 {[%clk 0:02:57]} 3. Nc3 {[%clk 0:02:53]}  d5 {[%clk 0:02:51]} 4. e5 {[%clk 0:02:52]}  d4 {[%clk 0:02:51]} 5. Nce2 {[%clk 0:02:51]}  Nd5 {[%clk 0:02:49]} 6. Nxd4 {[%clk 0:02:42]}  Nxf4 {[%clk 0:02:46]} 7. Ndf3 {[%clk 0:02:40]}  c5 {[%clk 0:02:36]} 8. d4 {[%clk 0:02:40]}  Ng6 {[%clk 0:02:36]} 9. d5 {[%clk 0:02:38]}  e6 {[%clk 0:02:34]} 10. Bb5+ {[%clk 0:02:29]}  Bd7 {[%clk 0:02:33]} 11. dxe6 {[%clk 0:02:27]}  Qa5+ {[%clk 0:02:24]} 12. Bd2 {[%clk 0:02:23]}  Qxb5 {[%clk 0:02:25]} 13. exd7+ {[%clk 0:02:14]}  Nxd7 {[%clk 0:02:26]} 14. Bc3 {[%clk 0:02:11]}  O-O-O {[%clk 0:02:22]} 15. a4 {[%clk 0:01:47]}  Qc6 {[%clk 0:02:06]} 16. Qe2 {[%clk 0:01:45]}  f6 {[%clk 0:01:52]} 17. Qb5 {[%clk 0:01:31]}  Ndxe5 {[%clk 0:01:44]} 18. Bxe5 {[%clk 0:01:11]}  Nxe5 {[%clk 0:01:43]} 19. Qxc6+ {[%clk 0:00:54]}  Nxc6 {[%clk 0:01:44]} 20. c3 {[%clk 0:00:53]}  c4 {[%clk 0:01:38]} 21. Rd1 {[%clk 0:00:44]}  Bc5 {[%clk 0:01:24]} 22. Rxd8+ {[%clk 0:00:43]}  Rxd8 {[%clk 0:01:25]} 23. Ne2 {[%clk 0:00:42]}  Be3 {[%clk 0:01:21]} 24. h4 {[%clk 0:00:36]}  h5 {[%clk 0:01:14]} 25. Rh3 {[%clk 0:00:36]}  Ne7 {[%clk 0:01:07]} 26. Nfd4 {[%clk 0:00:34]}  Nd5 {[%clk 0:01:02]} 27. Nf5 {[%clk 0:00:32]}  Bc5 {[%clk 0:00:53]} 28. Rg3 {[%clk 0:00:26]}  Nb6 {[%clk 0:00:49]} 29. a5 {[%clk 0:00:23]}  Na4 {[%clk 0:00:49]} 30. Rxg7 {[%clk 0:00:20]}  Nxb2 {[%clk 0:00:47]} 31. Ned4 {[%clk 0:00:20]}  Nd3+ {[%clk 0:00:43]} 32. Kd2 {[%clk 0:00:20]}  Nf4 {[%clk 0:00:42]} 33. Kc2 {[%clk 0:00:18]}  Rd5 {[%clk 0:00:27]} 34. a6 {[%clk 0:00:17]}  bxa6 {[%clk 0:00:25]} 35. g4 {[%clk 0:00:16]}  hxg4 {[%clk 0:00:20]} 36. Rxg4 {[%clk 0:00:16]}  Nd3 {[%clk 0:00:16]} 37. Rg8+ {[%clk 0:00:14]}  Kb7 {[%clk 0:00:15]} 38. Rg7+ {[%clk 0:00:13]}  Kb6 {[%clk 0:00:15]} 39. Rf7 {[%clk 0:00:14]}  Bxd4 {[%clk 0:00:12]} 40. Nxd4 {[%clk 0:00:14]}  Ra5 {[%clk 0:00:04]} 41. Rxf6+ {[%clk 0:00:13]}  Kc7 {[%clk 0:00:05]} 42. Rf7+ {[%clk 0:00:13]}  Kd6 {[%clk 0:00:05]} 43. Rf6+ {[%clk 0:00:13]}  Kd7 {[%clk 0:00:03]} 44. Rf7+ {[%clk 0:00:13]}  Ke8 {[%clk 0:00:03]} 45. Rxa7 {[%clk 0:00:13]}  Ra2+ {[%clk 0:00:04]} 46. Kd1 {[%clk 0:00:13]}  a5 {[%clk 0:00:03]} 47. Nb5 {[%clk 0:00:12]}  Nf2+ {[%clk 0:00:02]} 48. Kc1 {[%clk 0:00:12]}  Nd3+ {[%clk 0:00:02]} 49. Kd1 {[%clk 0:00:12]}  Nf2+ {[%clk 0:00:03]} 50. Ke1 {[%clk 0:00:12]}  Ne4 {[%clk 0:00:03]} 51. h5 {[%clk 0:00:11]}  Ra1+ {[%clk 0:00:03]} 52. Ke2 {[%clk 0:00:10]}  Rb1 {[%clk 0:00:04]} 53. Na3 {[%clk 0:00:10]}  Nxc3+ {[%clk 0:00:03]} 54. Kd2 {[%clk 0:00:10]}  Rb3 {[%clk 0:00:03]} 55. Nxc4 {[%clk 0:00:09]}  Ne4+ {[%clk 0:00:03]} 56. Ke2 {[%clk 0:00:10]}  Rh3 {[%clk 0:00:04]} 57. Rxa5 {[%clk 0:00:09]}  Ke7 {[%clk 0:00:03]} 58. Re5+ {[%clk 0:00:09]}  Kf6 {[%clk 0:00:04]} 59. Rxe4 {[%clk 0:00:09]}  Rxh5 {[%clk 0:00:05]} 60. Kd3 {[%clk 0:00:10]}  Rd5+ {[%clk 0:00:04]} 61. Ke3 {[%clk 0:00:10]}  Rf5 {[%clk 0:00:05]} 62. Kd4 {[%clk 0:00:10]}  Rf1 {[%clk 0:00:05]} 63. Ne3 {[%clk 0:00:10]}  Ra1 {[%clk 0:00:05]} 64. Nd5+ {[%clk 0:00:10]}  Kf5 {[%clk 0:00:05]} 65. Rf4+ {[%clk 0:00:10]}  Kg5 {[%clk 0:00:05]} 66. Rf8 {[%clk 0:00:10]}  Rd1+ {[%clk 0:00:06]} 67. Ke4 {[%clk 0:00:09]}  Re1+ {[%clk 0:00:06]} 68. Ne3 {[%clk 0:00:10]}  Ra1 {[%clk 0:00:07]} 69. Rf5+ {[%clk 0:00:09]}  Kg6 {[%clk 0:00:07]} 70. Rf2 {[%clk 0:00:08]}  Ra4+ {[%clk 0:00:08]} 71. Ke5 {[%clk 0:00:08]}  Ra5+ {[%clk 0:00:08]} 72. Nd5 {[%clk 0:00:09]}  Ra1 {[%clk 0:00:09]} 73. Rg2+ {[%clk 0:00:09]}  Kf7 {[%clk 0:00:09]} 74. Rf2+ {[%clk 0:00:08]}  Kg6 {[%clk 0:00:10]} 75. Ne7+ {[%clk 0:00:08]}  Kg7 {[%clk 0:00:09]} 76. Nf5+ {[%clk 0:00:08]}  Kf7 {[%clk 0:00:08]} 77. Nd6+ {[%clk 0:00:08]}  Kg6 {[%clk 0:00:08]} 78. Rg2+ {[%clk 0:00:07]}  Kh5 {[%clk 0:00:09]} 79. Kf6 {[%clk 0:00:06]}  Kh4 {[%clk 0:00:09]} 80. Nf5+ {[%clk 0:00:06]}  Kh3 {[%clk 0:00:09]} 81. Rg8 {[%clk 0:00:06]}  Ra6+ {[%clk 0:00:09]} 82. Ke5 {[%clk 0:00:06]}  Ra5+ {[%clk 0:00:09]} 83. Kf4 {[%clk 0:00:06]}  Ra4+ {[%clk 0:00:09]} 84. Kf3 {[%clk 0:00:06]}  Ra3+ {[%clk 0:00:09]} 85. Ne3 {[%clk 0:00:06]}  Kh4 {[%clk 0:00:10]} 86. Rg1 {[%clk 0:00:04]}  Kh5 {[%clk 0:00:10]} 87. Kf4 {[%clk 0:00:04]}  Ra4+ {[%clk 0:00:10]} 88. Ke5 {[%clk 0:00:04]}  Ra5+ {[%clk 0:00:10]} 89. Nd5 {[%clk 0:00:04]}  Kh4 {[%clk 0:00:10]} 90. Ke4 {[%clk 0:00:03]}  Ra4+ {[%clk 0:00:10]} 91. Kf3 {[%clk 0:00:03]}  Ra3+ {[%clk 0:00:10]} 92. Kf4 {[%clk 0:00:03]}  Ra4+ {[%clk 0:00:09]} 93. Kf5 {[%clk 0:00:03]}  Ra5 {[%clk 0:00:09]} 0-1


[Site "https://www.chess.com"]

[Event "Titled Tuesday Blitz May 31 Early 2022"]
[White "Kim, Sergey"]
[Black "Ismayil, Malak"]
[WhiteFideId "13700570"]
[BlackFideId "13412604"]
[WhiteElo "2576"]
[BlackElo "1879"]
[Result "1/2-1/2"]
[Round "10"]
[TimeControl "180+1"]
[Date "2022.06.01"]
[WhiteClock "0:00:05"]
[BlackClock "0:00:04"]

1. d4 {[%clk 0:03:00]}  Nf6 {[%clk 0:02:55]} 2. c4 {[%clk 0:03:00]}  e6 {[%clk 0:02:51]} 3. Nc3 {[%clk 0:03:00]}  Bb4 {[%clk 0:02:47]} 4. Qc2 {[%clk 0:03:00]}  O-O {[%clk 0:02:47]} 5. a3 {[%clk 0:03:00]}  Bxc3+ {[%clk 0:02:45]} 6. Qxc3 {[%clk 0:03:00]}  b6 {[%clk 0:02:45]} 7. Nf3 {[%clk 0:03:00]}  Bb7 {[%clk 0:02:45]} 8. g3 {[%clk 0:03:00]}  Ne4 {[%clk 0:02:45]} 9. Qc2 {[%clk 0:02:59]}  f5 {[%clk 0:02:45]} 10. Bg2 {[%clk 0:03:00]}  Nf6 {[%clk 0:02:44]} 11. O-O {[%clk 0:03:00]}  d6 {[%clk 0:02:45]} 12. b4 {[%clk 0:02:56]}  Nbd7 {[%clk 0:02:45]} 13. Bb2 {[%clk 0:02:54]}  Qe7 {[%clk 0:02:45]} 14. a4 {[%clk 0:02:49]}  a5 {[%clk 0:02:41]} 15. b5 {[%clk 0:02:48]}  Be4 {[%clk 0:02:32]} 16. Qc3 {[%clk 0:02:47]}  h6 {[%clk 0:02:31]} 17. Rac1 {[%clk 0:02:35]}  Rae8 {[%clk 0:02:13]} 18. Ba3 {[%clk 0:02:33]}  Qf7 {[%clk 0:02:11]} 19. c5 {[%clk 0:02:30]}  dxc5 {[%clk 0:02:07]} 20. dxc5 {[%clk 0:02:30]}  Nd5 {[%clk 0:02:08]} 21. Qb2 {[%clk 0:02:17]}  Nxc5 {[%clk 0:02:00]} 22. Bxc5 {[%clk 0:02:16]}  bxc5 {[%clk 0:02:01]} 23. Rxc5 {[%clk 0:02:16]}  Qe7 {[%clk 0:01:56]} 24. Rfc1 {[%clk 0:02:15]}  Qd6 {[%clk 0:01:23]} 25. Rc6 {[%clk 0:01:52]}  Qd8 {[%clk 0:01:16]} 26. Qe5 {[%clk 0:01:47]}  Rf7 {[%clk 0:01:02]} 27. Nd4 {[%clk 0:01:42]}  Bxg2 {[%clk 0:00:56]} 28. Kxg2 {[%clk 0:01:42]}  Rfe7 {[%clk 0:00:50]} 29. Rxe6 {[%clk 0:01:12]}  Rxe6 {[%clk 0:00:42]} 30. Nxe6 {[%clk 0:01:13]}  Qd7 {[%clk 0:00:42]} 31. Rc6 {[%clk 0:01:12]}  Nb4 {[%clk 0:00:39]} 32. Rxc7 {[%clk 0:01:10]}  Rxe6 {[%clk 0:00:32]} 33. Qc5 {[%clk 0:00:59]}  Qd5+ {[%clk 0:00:29]} 34. Qxd5 {[%clk 0:00:58]}  Nxd5 {[%clk 0:00:30]} 35. Ra7 {[%clk 0:00:54]}  Rxe2 {[%clk 0:00:29]} 36. Rxa5 {[%clk 0:00:54]}  Rb2 {[%clk 0:00:26]} 37. Ra8+ {[%clk 0:00:48]}  Kh7 {[%clk 0:00:26]} 38. h4 {[%clk 0:00:45]}  Ne3+ {[%clk 0:00:23]} 39. Kf3 {[%clk 0:00:45]}  Nd1 {[%clk 0:00:23]} 40. Kf4 {[%clk 0:00:42]}  Rxf2+ {[%clk 0:00:22]} 41. Ke5 {[%clk 0:00:42]}  Kg6 {[%clk 0:00:19]} 42. b6 {[%clk 0:00:40]}  Re2+ {[%clk 0:00:19]} 43. Kd6 {[%clk 0:00:39]}  Rd2+ {[%clk 0:00:15]} 44. Kc7 {[%clk 0:00:35]}  Rc2+ {[%clk 0:00:15]} 45. Kd7 {[%clk 0:00:34]}  Rb2 {[%clk 0:00:14]} 46. a5 {[%clk 0:00:32]}  Nc3 {[%clk 0:00:10]} 47. Kc6 {[%clk 0:00:31]}  Ne2 {[%clk 0:00:05]} 48. a6 {[%clk 0:00:23]}  Nd4+ {[%clk 0:00:06]} 49. Kb7 {[%clk 0:00:21]}  Ne6 {[%clk 0:00:05]} 50. a7 {[%clk 0:00:20]}  Nc5+ {[%clk 0:00:05]} 51. Kc6 {[%clk 0:00:20]}  Na4 {[%clk 0:00:04]} 52. Rb8 {[%clk 0:00:20]}  Rc2+ {[%clk 0:00:03]} 53. Kb5 {[%clk 0:00:19]}  Nc3+ {[%clk 0:00:02]} 54. Ka6 {[%clk 0:00:19]}  Ra2+ {[%clk 0:00:02]} 55. Kb7 {[%clk 0:00:19]}  Nd5 {[%clk 0:00:02]} 56. a8=Q {[%clk 0:00:18]}  Rxa8 {[%clk 0:00:03]} 57. Kxa8 {[%clk 0:00:19]}  Nxb6+ {[%clk 0:00:03]} 58. Rxb6+ {[%clk 0:00:18]}  Kh5 {[%clk 0:00:03]} 59. Kb7 {[%clk 0:00:16]}  g5 {[%clk 0:00:02]} 60. hxg5 {[%clk 0:00:15]}  hxg5 {[%clk 0:00:03]} 61. Kc6 {[%clk 0:00:14]}  Kg4 {[%clk 0:00:04]} 62. Rb5 {[%clk 0:00:14]}  Kxg3 {[%clk 0:00:02]} 63. Rxf5 {[%clk 0:00:13]}  g4 {[%clk 0:00:03]} 64. Kd5 {[%clk 0:00:13]}  Kh2 {[%clk 0:00:03]} 65. Ke4 {[%clk 0:00:12]}  g3 {[%clk 0:00:04]} 66. Rh5+ {[%clk 0:00:12]}  Kg2 {[%clk 0:00:03]} 67. Rg5 {[%clk 0:00:11]}  Kf2 {[%clk 0:00:03]} 68. Rf5+ {[%clk 0:00:11]}  Ke2 {[%clk 0:00:02]} 69. Rg5 {[%clk 0:00:09]}  Kf2 {[%clk 0:00:01]} 70. Ra5 {[%clk 0:00:08]}  g2 {[%clk 0:00:01]} 71. Ra2+ {[%clk 0:00:08]}  Kg3 {[%clk 0:00:02]} 72. Ra1 {[%clk 0:00:07]}  Kf2 {[%clk 0:00:02]} 73. Ra2+ {[%clk 0:00:06]}  Kg3 {[%clk 0:00:03]} 74. Ra3+ {[%clk 0:00:06]}  Kf2 {[%clk 0:00:03]} 75. Rf3+ {[%clk 0:00:06]}  Ke2 {[%clk 0:00:03]} 76. Rg3 {[%clk 0:00:06]}  Kf2 {[%clk 0:00:03]} 77. Rf3+ {[%clk 0:00:06]}  Ke2 {[%clk 0:00:04]} 78. Rg3 {[%clk 0:00:06]}  Kf2 {[%clk 0:00:04]} 79. Rf3+ {[%clk 0:00:05]} 1/2-1/2


[Site "https://www.chess.com"]

[Event "Titled Tuesday Blitz May 31 Early 2022"]
[White "Lazavik, Denis"]
[Black "Cherniaiev, Tykhon"]
[WhiteFideId "13515110"]
[BlackFideId "14182360"]
[WhiteElo "2437"]
[BlackElo "2289"]
[Result "1-0"]
[Round "10"]
[TimeControl "180+1"]
[Date "2022.05.31"]
[WhiteClock "0:00:08"]
[BlackClock "0:00:08"]

1. d4 {[%clk 0:03:00]}  Nf6 {[%clk 0:02:59]} 2. c4 {[%clk 0:03:00]}  e6 {[%clk 0:03:00]} 3. Nf3 {[%clk 0:02:55]}  d5 {[%clk 0:02:59]} 4. Nc3 {[%clk 0:02:54]}  Be7 {[%clk 0:02:59]} 5. Bg5 {[%clk 0:02:53]}  O-O {[%clk 0:02:59]} 6. e3 {[%clk 0:02:54]}  dxc4 {[%clk 0:02:57]} 7. Bxc4 {[%clk 0:02:53]}  c5 {[%clk 0:02:57]} 8. O-O {[%clk 0:02:51]}  cxd4 {[%clk 0:02:55]} 9. exd4 {[%clk 0:02:49]}  Nc6 {[%clk 0:02:55]} 10. Re1 {[%clk 0:02:49]}  h6 {[%clk 0:02:52]} 11. Bh4 {[%clk 0:02:48]}  Nd5 {[%clk 0:02:49]} 12. Bxd5 {[%clk 0:02:41]}  Bxh4 {[%clk 0:02:39]} 13. Bxc6 {[%clk 0:02:41]}  bxc6 {[%clk 0:02:39]} 14. Nxh4 {[%clk 0:02:30]}  Qxh4 {[%clk 0:02:37]} 15. Ne4 {[%clk 0:02:21]}  Rd8 {[%clk 0:02:36]} 16. Qa4 {[%clk 0:01:45]}  Bb7 {[%clk 0:02:12]} 17. Nc5 {[%clk 0:01:30]}  Rxd4 {[%clk 0:01:48]} 18. Qa5 {[%clk 0:01:18]}  Rd5 {[%clk 0:01:42]} 19. Rac1 {[%clk 0:01:11]}  Rad8 {[%clk 0:01:14]} 20. Qxa7 {[%clk 0:01:06]}  Ba8 {[%clk 0:01:09]} 21. Qa3 {[%clk 0:01:01]}  Rd2 {[%clk 0:00:59]} 22. Rf1 {[%clk 0:01:00]}  R2d5 {[%clk 0:00:51]} 23. Qc3 {[%clk 0:00:58]}  Qg4 {[%clk 0:00:43]} 24. h3 {[%clk 0:00:37]}  Qg6 {[%clk 0:00:42]} 25. b4 {[%clk 0:00:28]}  Rg5 {[%clk 0:00:41]} 26. Qf3 {[%clk 0:00:27]}  Rf5 {[%clk 0:00:41]} 27. Qe4 {[%clk 0:00:25]}  Qf6 {[%clk 0:00:38]} 28. a3 {[%clk 0:00:24]}  Re5 {[%clk 0:00:36]} 29. Qc4 {[%clk 0:00:22]}  Red5 {[%clk 0:00:33]} 30. Qc3 {[%clk 0:00:20]}  Qg6 {[%clk 0:00:32]} 31. Rfe1 {[%clk 0:00:20]}  Rd2 {[%clk 0:00:26]} 32. Qe3 {[%clk 0:00:19]}  Ra2 {[%clk 0:00:20]} 33. Rcd1 {[%clk 0:00:16]}  Qf6 {[%clk 0:00:17]} 34. Rxd8+ {[%clk 0:00:15]}  Qxd8 {[%clk 0:00:18]} 35. Qc3 {[%clk 0:00:14]}  Qd5 {[%clk 0:00:11]} 36. a4 {[%clk 0:00:12]}  Qf5 {[%clk 0:00:09]} 37. Qe3 {[%clk 0:00:10]}  Rb2 {[%clk 0:00:08]} 38. Rd1 {[%clk 0:00:09]}  Kh7 {[%clk 0:00:07]} 39. Qd4 {[%clk 0:00:10]}  Qc2 {[%clk 0:00:04]} 40. Qd3+ {[%clk 0:00:09]}  Qxd3 {[%clk 0:00:04]} 41. Nxd3 {[%clk 0:00:06]}  Rb3 {[%clk 0:00:04]} 42. a5 {[%clk 0:00:06]}  Bb7 {[%clk 0:00:04]} 43. Nc5 {[%clk 0:00:04]}  Rxb4 {[%clk 0:00:04]} 44. Rd7 {[%clk 0:00:05]}  Bc8 {[%clk 0:00:04]} 45. Rxf7 {[%clk 0:00:05]}  e5 {[%clk 0:00:03]} 46. Rc7 {[%clk 0:00:05]}  Bf5 {[%clk 0:00:04]} 47. Rxc6 {[%clk 0:00:05]}  Rb1+ {[%clk 0:00:04]} 48. Kh2 {[%clk 0:00:05]}  Rb2 {[%clk 0:00:05]} 49. Kg3 {[%clk 0:00:04]}  h5 {[%clk 0:00:04]} 50. h4 {[%clk 0:00:03]}  Rb4 {[%clk 0:00:04]} 51. f3 {[%clk 0:00:02]}  Rb2 {[%clk 0:00:04]} 52. a6 {[%clk 0:00:03]}  Ra2 {[%clk 0:00:04]} 53. Rc7 {[%clk 0:00:03]}  e4 {[%clk 0:00:02]} 54. fxe4 {[%clk 0:00:03]}  Bg4 {[%clk 0:00:02]} 55. a7 {[%clk 0:00:04]}  Kh6 {[%clk 0:00:02]} 56. e5 {[%clk 0:00:04]}  g5 {[%clk 0:00:02]} 57. e6 {[%clk 0:00:02]}  Ra3+ {[%clk 0:00:02]} 58. Kf2 {[%clk 0:00:02]}  Ra2+ {[%clk 0:00:02]} 59. Ke3 {[%clk 0:00:03]}  gxh4 {[%clk 0:00:02]} 60. e7 {[%clk 0:00:03]}  Kg5 {[%clk 0:00:02]} 61. Kd3 {[%clk 0:00:02]}  Bf5+ {[%clk 0:00:01]} 62. Kc3 {[%clk 0:00:03]}  Bg6 {[%clk 0:00:02]} 63. Kb3 {[%clk 0:00:03]}  Ra1 {[%clk 0:00:02]} 64. Rc6 {[%clk 0:00:02]}  Bf7+ {[%clk 0:00:02]} 65. Kb4 {[%clk 0:00:02]}  Rxa7 {[%clk 0:00:03]} 66. Ne4+ {[%clk 0:00:03]}  Kf4 {[%clk 0:00:03]} 67. Rf6+ {[%clk 0:00:03]}  Kxe4 {[%clk 0:00:03]} 68. Rxf7 {[%clk 0:00:03]}  Rb7+ {[%clk 0:00:03]} 69. Kc5 {[%clk 0:00:04]}  Rb8 {[%clk 0:00:04]} 70. Rf8 {[%clk 0:00:04]}  Rb1 {[%clk 0:00:05]} 71. e8=Q+ {[%clk 0:00:04]}  Kd3 {[%clk 0:00:04]} 72. Qg6+ {[%clk 0:00:04]}  Kd2 {[%clk 0:00:05]} 73. Qxb1 {[%clk 0:00:05]}  h3 {[%clk 0:00:05]} 74. Rf2+ {[%clk 0:00:04]}  Ke3 {[%clk 0:00:05]} 75. Qe1+ {[%clk 0:00:05]}  Kd3 {[%clk 0:00:06]} 76. Rd2+ {[%clk 0:00:05]}  Kc3 {[%clk 0:00:06]} 77. Qc1+ {[%clk 0:00:06]}  Kb3 {[%clk 0:00:07]} 78. Rb2+ {[%clk 0:00:07]}  Ka3 {[%clk 0:00:08]} 79. Qa1# {[%clk 0:00:08]} 1-0


[Site "https://www.chess.com"]

[Event "Titled Tuesday Blitz May 31 Early 2022"]
[White "Makarian, Rudik"]
[Black "Shailesh, Dravid"]
[WhiteFideId "44105681"]
[BlackFideId "25017969"]
[WhiteElo "2419"]
[BlackElo "2205"]
[Result "1-0"]
[Round "10"]
[TimeControl "180+1"]
[Date "2022.05.31"]
[WhiteClock "0:01:59"]
[BlackClock "0:01:31"]

1. d3 {[%clk 0:02:59]}  c5 {[%clk 0:02:57]} 2. g3 {[%clk 0:02:59]}  Nc6 {[%clk 0:02:57]} 3. Bg2 {[%clk 0:02:59]}  e5 {[%clk 0:02:57]} 4. c4 {[%clk 0:03:00]}  d6 {[%clk 0:02:57]} 5. Nc3 {[%clk 0:03:00]}  g6 {[%clk 0:02:56]} 6. h4 {[%clk 0:03:01]}  h6 {[%clk 0:02:53]} 7. Nd5 {[%clk 0:02:59]}  Bg7 {[%clk 0:02:52]} 8. Nf3 {[%clk 0:03:00]}  Nge7 {[%clk 0:02:52]} 9. Nd2 {[%clk 0:03:00]}  Be6 {[%clk 0:02:48]} 10. e4 {[%clk 0:02:56]}  Nd4 {[%clk 0:02:44]} 11. h5 {[%clk 0:02:50]}  g5 {[%clk 0:02:42]} 12. g4 {[%clk 0:02:50]}  Qd7 {[%clk 0:02:39]} 13. f3 {[%clk 0:02:50]}  Nec6 {[%clk 0:02:36]} 14. O-O {[%clk 0:02:49]}  O-O {[%clk 0:02:36]} 15. Rb1 {[%clk 0:02:45]}  a6 {[%clk 0:02:34]} 16. Nb6 {[%clk 0:02:45]}  Qc7 {[%clk 0:02:34]} 17. Nxa8 {[%clk 0:02:46]}  Rxa8 {[%clk 0:02:34]} 18. Nb3 {[%clk 0:02:46]}  b5 {[%clk 0:02:29]} 19. Nxd4 {[%clk 0:02:45]}  Nxd4 {[%clk 0:02:29]} 20. b3 {[%clk 0:02:46]}  Rb8 {[%clk 0:02:28]} 21. Be3 {[%clk 0:02:45]}  a5 {[%clk 0:02:23]} 22. Bxd4 {[%clk 0:02:44]}  exd4 {[%clk 0:02:23]} 23. cxb5 {[%clk 0:02:42]}  Rxb5 {[%clk 0:02:20]} 24. Qd2 {[%clk 0:02:41]}  Be5 {[%clk 0:02:20]} 25. f4 {[%clk 0:02:42]}  gxf4 {[%clk 0:02:20]} 26. Rxf4 {[%clk 0:02:43]}  Bxf4 {[%clk 0:02:06]} 27. Qxf4 {[%clk 0:02:44]}  Kg7 {[%clk 0:02:06]} 28. g5 {[%clk 0:02:42]}  Qe7 {[%clk 0:01:58]} 29. gxh6+ {[%clk 0:02:41]}  Kh7 {[%clk 0:01:58]} 30. e5 {[%clk 0:02:37]}  d5 {[%clk 0:01:55]} 31. Kh2 {[%clk 0:02:31]}  Rb8 {[%clk 0:01:54]} 32. Rg1 {[%clk 0:02:27]}  Rg8 {[%clk 0:01:54]} 33. Be4+ {[%clk 0:02:18]}  dxe4 {[%clk 0:01:50]} 34. Rxg8 {[%clk 0:02:12]}  Kxg8 {[%clk 0:01:49]} 35. Qg3+ {[%clk 0:02:12]}  Kf8 {[%clk 0:01:48]} 36. h7 {[%clk 0:02:12]}  Ke8 {[%clk 0:01:42]} 37. h8=Q+ {[%clk 0:02:08]}  Kd7 {[%clk 0:01:42]} 38. Qf6 {[%clk 0:02:05]}  Qf8 {[%clk 0:01:36]} 39. h6 {[%clk 0:02:05]}  exd3 {[%clk 0:01:33]} 40. Qxd3 {[%clk 0:02:00]}  Qb8 {[%clk 0:01:31]} 41. h7 {[%clk 0:01:59]} 1-0


[Site "https://www.chess.com"]

[Event "Titled Tuesday Blitz May 31 Early 2022"]
[White "Martinez Alcantara, Jose Eduardo"]
[Black "Niemann, Hans Moke"]
[WhiteFideId "3805662"]
[BlackFideId "2093596"]
[WhiteElo "2690"]
[BlackElo "2632"]
[Result "0-1"]
[Round "10"]
[TimeControl "180+1"]
[Date "2022.05.31"]
[WhiteClock "0:00:02"]
[BlackClock "0:00:14"]

1. e4 {[%clk 0:03:00]}  c6 {[%clk 0:03:00]} 2. d4 {[%clk 0:03:01]}  d5 {[%clk 0:03:01]} 3. e5 {[%clk 0:03:01]}  Bf5 {[%clk 0:03:01]} 4. h4 {[%clk 0:03:02]}  a6 {[%clk 0:02:58]} 5. Nc3 {[%clk 0:02:59]}  h6 {[%clk 0:02:32]} 6. g4 {[%clk 0:02:57]}  Bd7 {[%clk 0:02:29]} 7. h5 {[%clk 0:02:57]}  e6 {[%clk 0:02:27]} 8. Be3 {[%clk 0:02:57]}  c5 {[%clk 0:02:24]} 9. dxc5 {[%clk 0:02:48]}  Qc7 {[%clk 0:02:15]} 10. f4 {[%clk 0:02:48]}  Bxc5 {[%clk 0:02:14]} 11. Qd2 {[%clk 0:02:46]}  Ne7 {[%clk 0:02:07]} 12. Nf3 {[%clk 0:02:45]}  Bxe3 {[%clk 0:01:57]} 13. Qxe3 {[%clk 0:02:46]}  Nbc6 {[%clk 0:01:57]} 14. O-O-O {[%clk 0:02:44]}  b5 {[%clk 0:01:53]} 15. Kb1 {[%clk 0:02:44]}  Rc8 {[%clk 0:01:47]} 16. Bd3 {[%clk 0:02:38]}  Qa7 {[%clk 0:01:39]} 17. Qd2 {[%clk 0:02:34]}  b4 {[%clk 0:01:28]} 18. Ne2 {[%clk 0:02:34]}  a5 {[%clk 0:01:29]} 19. Ng3 {[%clk 0:02:04]}  a4 {[%clk 0:01:23]} 20. f5 {[%clk 0:02:05]}  a3 {[%clk 0:01:06]} 21. b3 {[%clk 0:01:43]}  Qc5 {[%clk 0:00:53]} 22. f6 {[%clk 0:01:09]}  gxf6 {[%clk 0:00:49]} 23. exf6 {[%clk 0:01:09]}  Ng8 {[%clk 0:00:50]} 24. Ba6 {[%clk 0:00:54]}  Rc7 {[%clk 0:00:43]} 25. Ne2 {[%clk 0:00:33]}  Nxf6 {[%clk 0:00:42]} 26. Qf4 {[%clk 0:00:33]}  Nb8 {[%clk 0:00:17]} 27. Qxf6 {[%clk 0:00:30]}  Qxc2+ {[%clk 0:00:17]} 28. Ka1 {[%clk 0:00:30]}  Qb2+ {[%clk 0:00:17]} 29. Qxb2 {[%clk 0:00:30]}  axb2+ {[%clk 0:00:18]} 30. Kxb2 {[%clk 0:00:30]}  Nxa6 {[%clk 0:00:19]} 31. Rd4 {[%clk 0:00:21]}  Ke7 {[%clk 0:00:19]} 32. Rf4 {[%clk 0:00:20]}  f6 {[%clk 0:00:18]} 33. Rd4 {[%clk 0:00:19]}  Rhc8 {[%clk 0:00:17]} 34. Rd2 {[%clk 0:00:19]}  Nc5 {[%clk 0:00:16]} 35. Nf4 {[%clk 0:00:19]}  Ne4 {[%clk 0:00:16]} 36. Re2 {[%clk 0:00:16]}  Nc3 {[%clk 0:00:17]} 37. Rd2 {[%clk 0:00:15]}  Ra7 {[%clk 0:00:17]} 38. Ra1 {[%clk 0:00:13]}  Bc6 {[%clk 0:00:16]} 39. Nd4 {[%clk 0:00:13]}  Bd7 {[%clk 0:00:15]} 40. Nd3 {[%clk 0:00:10]}  Ne4 {[%clk 0:00:14]} 41. Re2 {[%clk 0:00:11]}  Rb7 {[%clk 0:00:15]} 42. Nc2 {[%clk 0:00:11]}  Bb5 {[%clk 0:00:13]} 43. Ncxb4 {[%clk 0:00:10]}  Kd6 {[%clk 0:00:13]} 44. Re3 {[%clk 0:00:10]}  e5 {[%clk 0:00:13]} 45. Rd1 {[%clk 0:00:09]}  Bxd3 {[%clk 0:00:12]} 46. Nxd3 {[%clk 0:00:09]}  Ke6 {[%clk 0:00:12]} 47. Ree1 {[%clk 0:00:09]}  Rbc7 {[%clk 0:00:13]} 48. Rc1 {[%clk 0:00:08]}  Nc3 {[%clk 0:00:14]} 49. b4 {[%clk 0:00:06]}  d4 {[%clk 0:00:14]} 50. Kb3 {[%clk 0:00:07]}  Kd5 {[%clk 0:00:14]} 51. a3 {[%clk 0:00:07]}  e4 {[%clk 0:00:13]} 52. Nf4+ {[%clk 0:00:05]}  Ke5 {[%clk 0:00:14]} 53. Ng6+ {[%clk 0:00:05]}  Kd6 {[%clk 0:00:15]} 54. Nh4 {[%clk 0:00:05]}  d3 {[%clk 0:00:14]} 55. Nf5+ {[%clk 0:00:05]}  Ke5 {[%clk 0:00:14]} 56. Rh1 {[%clk 0:00:02]}  d2 {[%clk 0:00:14]} 57. Rcd1 {[%clk 0:00:02]}  Nxd1 {[%clk 0:00:14]} 0-1


[Site "https://www.chess.com"]